[Event "52nd Biel Festival 2019"]
[Site "Biel"]
[Date "2019.07.24"]
[Round "3.1"]
[White "Georgiadis, Nico"]
[Black "Bogner, Sebastian"]
[Result "1/2-1/2"]
[ECO "E06"]
[WhiteElo "2514"]
[BlackElo "2584"]
[Annotator "TA"]
[PlyCount "74"]
[EventDate "2019.07.22"]
[EventType "tourn"]
[EventCountry "SUI"]
[SourceTitle "playchess.com"]
[Source "ChessBase"]
[SourceQuality "1"]
[TimeControl "40/6000+30:20/3000+30:900+30"]

1. d4 {[%emt 0:00:00]} Nf6 {[%emt 0:00:00]} 2. c4 {[%emt 0:00:00]} e6 {[%emt 0:00:00]} 3. g3 {[%emt 0:00:00]} d5 {[%emt 0:00:31]} 4. Bg2 {[%emt 0:00:00]} Be7 {[%emt 0:00:05]} 5. Nf3 {[%emt 0:00:30]} O-O {[%emt 0:00:05]} 6. Qc2 {[%emt 0:00:28]} c5 {[%emt 0:01:05]} 7. dxc5 {[%emt 0:00:15]} Qa5+ {[%emt 0:01:22]} 8. Nc3 {[%emt 0:00:43]} dxc4 {[%emt 0:00:42]} 9. O-O {[%emt 0:00:14]} Nc6 {[%emt 0:03:26]} 10. Bg5 {[%emt 0:00:49]} Qxc5 {[%emt 0:00:34]} 11. Bxf6 {[%emt 0:00:09]} Bxf6 {[%emt 0:01:15]} 12. Ne4 {[%emt 0:00:07]} Qe7 {[%emt 0:00:13]} 13. Nfd2 {[%emt 0:00:36]} Bd7 {[%emt 0:02:58]} 14. Nxf6+ {[%emt 0:01:39]} Qxf6 {[%emt 0:01:20]} 15. Ne4 {[%emt 0:00:04]} Qe7 {[%emt 0:00:40]} 16. Qxc4 {[%emt 0:00:43]} Rfd8 {[%emt 0:00:33]} 17. Rfd1 {[%emt 0:23:57]} Be8 {[%emt 0:00:11]} 18. Qc5 {[%emt 0:02:33]} Qxc5 {[%emt 0:02:34]} 19. Nxc5 {[%emt 0:00:06]} b6 {[%emt 0:00:10]} 20. Ne4 {[%emt 0:02:52]} Rxd1+ {[%emt 0:04:23]} 21. Rxd1 {[%emt 0:00:41]} Rd8 {[%emt 0:02:24]} 22. Rxd8 {[%emt 0:05:06]} Nxd8 {[%emt 0:00:59]} 23. e3 {[%emt 0:10:21]} Kf8 {[%emt 0:00:32]} 24. Nc3 {[%emt 0:00:26]} Ke7 {[%emt 0:00:15]} 25. Kf1 {[%emt 0:00:05]} f6 {[%emt 0:05:40]} 26. Ke2 {[%emt 0:00:35]} Nf7 {[%emt 0:05:54]} 27. f4 {[%emt 0:00:55]} Nd6 {[%emt 0:00:25]} 28. b3 {[%emt 0:12:10]} Nb5 {[%emt 0:01:08]} 29. Nxb5 {[%emt 0:00:18]} Bxb5+ {[%emt 0:00:05]} 30. Kd2 {[%emt 0:00:09]} Kd6 {[%emt 0:00:06]} 31. Kc3 {[%emt 0:00:31]} e5 {[%emt 0:00:34]} 32. a3 {[%emt 0:01:09]} h6 {[%emt 0:00:39]} 33. h4 {[%emt 0:00:48]} Kc5 {[%emt 0:01:06]} 34. Be4 {[%emt 0:00:43]} Kd6 {[%emt 0:00:32]} 35. Bg2 {[%emt 0:00:11]} Kc5 {[%emt 0:00:04]} 36. Be4 {[%emt 0:00:05]} Kd6 {[%emt 0:00:04]} 37. Bg2 {[%emt 0:00:05]} Kc5 {[%emt 0:00:11]} 1/2-1/2

[Event "52nd Biel Festival 2019"]
[Site "Biel"]
[Date "2019.07.29"]
[Round "6.3"]
[White "Georgiadis, Nico"]
[Black "Maghsoodloo, Parham"]
[Result "1/2-1/2"]
[ECO "D85"]
[WhiteElo "2514"]
[BlackElo "2656"]
[Annotator "ChessBase"]
[PlyCount "98"]
[EventDate "2019.07.22"]
[EventType "tourn"]
[EventCountry "SUI"]
[SourceTitle "playchess.com"]
[Source "ChessBase"]
[SourceQuality "1"]
[TimeControl "40/6000+30:20/3000+30:900+30"]

1. d4 {[%emt 0:00:00]} Nf6 {[%emt 0:00:20]} 2. c4 {[%emt 0:00:00]} g6 {[%emt 0:00:05]} 3. Nc3 {[%emt 0:00:00]} d5 {[%emt 0:01:11]} 4. cxd5 {[%emt 0:00:02]} Nxd5 {[%emt 0:00:04]} 5. e4 {[%emt 0:00:07]} Nxc3 {[%emt 0:00:06]} 6. bxc3 {[%emt 0:00:05]} Bg7 {[%emt 0:00:15]} 7. Nf3 {[%emt 0:00:07]} c5 {[%emt 0:01:02]} 8. Bb5+ {[%emt 0:00:05]} Bd7 {[%emt 0:00:45]} 9. Bxd7+ {[%emt 0:01:11]} Qxd7 {[%emt 0:01:51]} 10. O-O {[%emt 0:00:08]} O-O {[%emt 0:00:41]} 11. Be3 {[%emt 0:02:38]} Rc8 {[%emt 0:13:27]} 12. Qe2 {[%emt 0:23:03]} Qg4 {[%emt 0:12:37]} 13. Qd3 {[%emt 0:06:30]} cxd4 {[%emt 0:10:35]} 14. cxd4 {[%emt 0:00:36]} Nc6 {[%emt 0:00:16]} 15. Rab1 {[%emt 0:07:39]} b6 {[%emt 0:00:36]} 16. Rfc1 {[%emt 0:07:37]} Na5 {[%emt 0:10:32]} 17. h3 {[%emt 0:02:46]} Qd7 {[%emt 0:00:18]} 18. d5 {[%emt 0:10:03]} Rd8 {[%emt 0:08:03]} 19. Bf4 {[%emt 0:11:11]} Rac8 {[%emt 0:01:03]} 20. Qa6 {[%emt 0:03:31]} e6 {[%emt 0:10:27]} 21. dxe6 {[%emt 0:03:26]} Qxe6 {[%emt 0:00:33]} 22. Qxa7 {[%emt 0:08:17]} Nc4 {[%emt 0:01:32]} 23. Qb7 {[%emt 0:06:12]} h6 {[%emt 0:04:54]} 24. a4 {[%emt 0:02:46]} Bf8 {[%emt 0:11:28]} 25. Re1 {[%emt 0:04:51]} g5 {[%emt 0:04:15]} 26. Bg3 {[%emt 0:01:36]} Bc5 {[%emt 0:01:43]} 27. Rbd1 {[%emt 0:02:36]} Nb2 {[%emt 0:05:53]} 28. Rxd8+ {[%emt 0:00:05]} Rxd8 {[%emt 0:00:02]} 29. a5 {[%emt 0:00:47]} Nd3 {[%emt 0:00:01]} 30. Ra1 {[%emt 0:03:12]} g4 {[%emt 0:02:50]} 31. hxg4 {[%emt 0:00:37]} Qxg4 {[%emt 0:00:01]} 32. Qc7 {[%emt 0:02:15]} Rc8 {[%emt 0:00:49]} 33. Ne5 {[%emt 0:00:17]} Qe6 {[%emt 0:06:31]} 34. Qd7 {[%emt 0:01:44]} Nxf2 {[%emt 0:01:23]} 35. Bxf2 {[%emt 0:00:48]} Bxf2+ {[%emt 0:00:01]} 36. Kf1 {[%emt 0:00:33]} Bg3 {[%emt 0:00:33]} 37. Qxe6 {[%emt 0:00:18]} fxe6 {[%emt 0:00:01]} 38. Nd3 {[%emt 0:00:34]} bxa5 {[%emt 0:00:16]} 39. Rxa5 {[%emt 0:00:07]} Rc2 {[%emt 0:00:08]} 40. Ra3 {[%emt 0:01:01]} h5 {[%emt 0:00:14]} 41. Rb3 {[%emt 0:09:41]} Rd2 {[%emt 0:03:03]} 42. Nc5 {[%emt 0:02:37]} h4 {[%emt 0:00:11]} 43. Nxe6 {[%emt 0:01:09]} Rf2+ {[%emt 0:00:16]} 44. Kg1 {[%emt 0:00:06]} Re2 {[%emt 0:00:04]} 45. Rf3 {[%emt 0:00:59]} Re1+ {[%emt 0:00:08]} 46. Rf1 {[%emt 0:00:04]} Bh2+ {[%emt 0:00:03]} 47. Kf2 {[%emt 0:00:06]} Bg3+ {[%emt 0:00:02]} 48. Kg1 {[%emt 0:00:04]} Bh2+ {[%emt 0:00:03]} 49. Kf2 {[%emt 0:00:04]} Bg3+ {[%emt 0:00:04]} 1/2-1/2

[Event "52nd Biel Festival 2019"]
[Site "Biel"]
[Date "2019.07.30"]
[Round "7.1"]
[White "Abdusattorov, Nodirbek"]
[Black "Bogner, Sebastian"]
[Result "1/2-1/2"]
[ECO "B19"]
[WhiteElo "2598"]
[BlackElo "2584"]
[Annotator "ChessBase"]
[PlyCount "141"]
[EventDate "2019.07.22"]
[EventType "tourn"]
[EventCountry "SUI"]
[SourceTitle "playchess.com"]
[Source "ChessBase"]
[SourceQuality "1"]
[TimeControl "40/6000+30:20/3000+30:900+30"]

1. e4 {[%emt 0:00:00]} c6 {[%emt 0:00:05]} 2. d4 {[%emt 0:00:00]} d5 {[%emt 0:00:07]} 3. Nc3 {[%emt 0:00:17]} dxe4 {[%emt 0:00:07]} 4. Nxe4 {[%emt 0:00:06]} Bf5 {[%emt 0:00:07]} 5. Ng3 {[%emt 0:00:10]} Bg6 {[%emt 0:00:04]} 6. h4 {[%emt 0:00:09]} h6 {[%emt 0:00:08]} 7. Nf3 {[%emt 0:00:06]} e6 {[%emt 0:00:15]} 8. h5 {[%emt 0:00:18]} Bh7 {[%emt 0:00:09]} 9. Bd3 {[%emt 0:00:11]} Bxd3 {[%emt 0:00:07]} 10. Qxd3 {[%emt 0:00:08]} Nf6 {[%emt 0:00:06]} 11. Bd2 {[%emt 0:01:07]} Be7 {[%emt 0:00:08]} 12. O-O-O {[%emt 0:00:35]} c5 {[%emt 0:00:37]} 13. Ne4 {[%emt 0:09:05]} cxd4 {[%emt 0:03:52]} 14. Nxd4 {[%emt 0:01:51]} Nbd7 {[%emt 0:00:05]} 15. Nxf6+ {[%emt 0:05:23]} Nxf6 {[%emt 0:02:45]} 16. Qb5+ {[%emt 0:02:14]} Qd7 {[%emt 0:00:10]} 17. Qxd7+ {[%emt 0:00:27]} Kxd7 {[%emt 0:00:50]} 18. Be3 {[%emt 0:21:23]} Rhc8 {[%emt 0:00:29]} 19. Nb5+ {[%emt 0:08:31]} Ke8 {[%emt 0:00:20]} 20. Bf4 {[%emt 0:13:07]} Nd5 {[%emt 0:22:06]} 21. Rxd5 {[%emt 0:02:27]} exd5 {[%emt 0:00:05]} 22. Nc7+ {[%emt 0:00:05]} Rxc7 {[%emt 0:00:46]} 23. Bxc7 {[%emt 0:00:06]} Bf6 {[%emt 0:00:52]} 24. Bf4 {[%emt 0:02:58]} Kd7 {[%emt 0:00:22]} 25. Rd1 {[%emt 0:01:03]} Ke6 {[%emt 0:04:20]} 26. Be3 {[%emt 0:01:50]} a6 {[%emt 0:05:52]} 27. Rd3 {[%emt 0:04:58]} b5 {[%emt 0:09:53]} 28. g4 {[%emt 0:01:39]} Rc8 {[%emt 0:03:30]} 29. f3 {[%emt 0:00:30]} Rc6 {[%emt 0:03:48]} 30. a3 {[%emt 0:03:36]} Rc8 {[%emt 0:05:42]} 31. Rd1 {[%emt 0:03:41]} Kd6 {[%emt 0:02:53]} 32. Re1 {[%emt 0:04:01]} Kd7 {[%emt 0:05:26]} 33. c3 {[%emt 0:03:32]} Rc4 {[%emt 0:07:07]} 34. Kc2 {[%emt 0:01:48]} a5 {[%emt 0:01:54]} 35. Kd3 {[%emt 0:01:28]} b4 {[%emt 0:04:58]} 36. axb4 {[%emt 0:00:24]} axb4 {[%emt 0:00:05]} 37. Bd2 {[%emt 0:00:26]} bxc3 {[%emt 0:00:20]} 38. bxc3 {[%emt 0:00:04]} Ra4 {[%emt 0:01:17]} 39. Rb1 {[%emt 0:00:18]} Be5 {[%emt 0:02:35]} 40. Rb4 {[%emt 0:01:02]} Ra3 {[%emt 0:15:08]} 41. Rb7+ {[%emt 0:51:50]} Kc6 {[%emt 0:51:49]} 42. Rxf7 {[%emt 0:00:20]} d4 {[%emt 0:00:28]} 43. f4 {[%emt 0:01:02]} dxc3 {[%emt 0:00:00]} 44. Bc1 {[%emt 0:00:00]} Ra1 {[%emt 0:00:00]} 45. fxe5 {[%emt 0:00:00]} Rxc1 {[%emt 0:00:00]} 46. Rxg7 {[%emt 0:00:00]} Kd5 {[%emt 0:00:00]} 47. e6 {[%emt 0:00:00]} Kxe6 {[%emt 0:00:00]} 48. Rg6+ {[%emt 0:00:00]} Kf7 {[%emt 0:00:00]} 49. Rxh6 {[%emt 0:00:00]} Rg1 {[%emt 0:00:00]} 50. Rg6 {[%emt 0:00:00]} Rg3+ {[%emt 0:00:00]} 51. Kc2 {[%emt 0:00:00]} Rh3 {[%emt 0:00:00]} 52. Kb3 {[%emt 0:00:00]} Rg3 {[%emt 0:00:00]} 53. g5 {[%emt 0:00:00]} Rh3 {[%emt 0:00:00]} 54. Rf6+ {[%emt 0:00:00]} Kg7 {[%emt 0:00:00]} 55. h6+ {[%emt 0:00:00]} Kh7 {[%emt 0:00:00]} 56. Rf7+ {[%emt 0:00:00]} Kh8 {[%emt 0:00:00]} 57. Kc2 {[%emt 0:00:00]} Rg3 {[%emt 0:00:00]} 58. Rg7 {[%emt 0:00:00]} Rh3 {[%emt 0:00:00]} 59. Rc7 {[%emt 0:00:00]} Rg3 {[%emt 0:00:00]} 60. Rc8+ {[%emt 0:00:00]} Kh7 {[%emt 0:00:00]} 61. Rc5 {[%emt 0:00:00]} Kg6 {[%emt 0:01:23]} 62. Kb3 {[%emt 0:00:00]} Kh7 {[%emt 0:01:15]} 63. Kc2 {[%emt 0:00:00]} Kg6 {[%emt 0:00:06]} 64. Kd1 {[%emt 0:00:00]} Rg1+ {[%emt 0:01:26]} 65. Kc2 {[%emt 0:00:00]} Rg3 {[%emt 0:00:49]} 66. Rd5 {[%emt 0:00:00]} Kh7 {[%emt 0:00:53]} 67. Rd7+ {[%emt 0:00:00]} Kh8 {[%emt 0:00:14]} 68. Rg7 {[%emt 0:00:00]} Rh3 {[%emt 0:00:14]} 69. Kb3 {[%emt 0:00:00]} c2+ {[%emt 0:00:49]} 70. Kxc2 {[%emt 0:00:00]} Rxh6 {[%emt 0:00:05]} 71. gxh6 {[%emt 0:00:00]} 1/2-1/2